Cogmind - Beta 14 @@@ ROGUE MODE // 2024.10.05 @ 20:49:01 Player: Feuermagier Result: Destroyed by 40-28C(R) with Subdweller Beam Cannon Performance ------------- Evolutions (0) 0 Regions Visited (2) 400 Robots Destroyed (24) 120 Value Destroyed (551) 551 Prototype IDs (1) 20 Alien Tech Used (0) 0 Bonus (0) 0 TOTAL SCORE: 1091 Bonus ------- None Cogmind --------- Core Integrity 0/250 Matter 288/300 Energy 99/100 System Corruption 2% Temperature Cool (9) Movement Treading (240) Ox1 Location -10/Subcaves Parts ------- > --- POWER (1) -------- (None) > --- PROPULSION (2) --- Light Treads > --- UTILITY (2) ------ Large Storage Unit Seismic Detector > --- WEAPON (2) ------- Improved Assault Rifle > --- INVENTORY (15) --- Light Ion Engine Light Treads Compact Wheel Compact Wheel Heat Sink Structural Scanner Sensor Array Signal Interpreter Beam Cannon Beam Cannon Improved Assault Rifle Improved Assault Rifle Rocket Launcher Rocket Launcher Mining Laser Peak State ------------ > --- POWER ------------ Light Ion Engine > --- PROPULSION ------- Light Treads Compact Wheel > --- UTILITY ---------- Large Storage Unit Seismic Detector > --- WEAPON ----------- Beam Cannon Improved Assault Rifle > --- INVENTORY -------- Light Ion Engine Light Treads Compact Wheel Compact Wheel Heat Sink Structural Scanner Sensor Array Signal Interpreter Beam Cannon Beam Cannon Improved Assault Rifle Improved Assault Rifle Light Cannon Rocket Launcher Mining Laser [Rating: 11] Favorites ----------- Power Light Ion Engine Engine Light Ion Engine Power Core Light Nuclear Core Propulsion Light Treads Treads Light Treads Wheel Compact Wheel Utility Seismic Detector Device Seismic Detector Storage Small Storage Unit Weapon Assault Rifle Energy Gun Small Laser Energy Cannon Beam Cannon Ballistic Gun Assault Rifle Special Weapon Mining Laser Build | -11 -10 -10 ------- Run | Yrd Mat Sub Slots Evolved . | . . . Power . | . . . Propulsion . | . . . Utility . | . . . Weapon . | . . . Parts Attached 27 | 6 21 . Power 6 | 1 5 . Engine 5 | 1 4 . Core 1 | . 1 . Reactor . | . . . Propulsion 7 | 2 5 . Treads 3 | 2 1 . Leg . | . . . Wheel 4 | . 4 . Hover . | . . . Flight . | . . . Utility 5 | 1 4 . Device 3 | . 3 . Storage 2 | 1 1 . Processor . | . . . Hackware . | . . . Protection . | . . . Artifact . | . . . Weapon 9 | 2 7 . Energy Gun 1 | 1 . . Energy Cannon 1 | . 1 . Ballistic Gun 5 | 1 4 . Ballistic Cannon . | . . . Launcher . | . . . Special Weapon 2 | . 2 . Impact Weapon . | . . . Slashing Weapon . | . . . Piercing Weapon . | . . . Special Melee Weapon . | . . . Unidentified Prototypes 1 | . 1 . Parts Lost 5 | . 2 3 Power 2 | . 1 1 Propulsion 2 | . 1 1 Utility . | . . . Weapon 1 | . . 1 Highest Loss Streak 3 | . 1 3 To Critical Strikes . | . . . Average Slot Usage (%) 97 | . 97 95 Engine 13 | . 13 12 Treads 18 | . 18 14 Wheel 9 | . 9 11 Device 12 | . 12 14 Storage 14 | . 14 14 Energy Gun 4 | . 4 . Energy Cannon 8 | . 8 12 Ballistic Gun 13 | . 13 14 Special Weapon 1 | . 2 . Peak Build Rating 11 | 6 11 11 Average Rating 8 | 5 7 10 On Entrance 5 | . 6 11 Naked Turns . | . . . Heaviest Build 30 | 11 30 30 Greatest Support 40 | 40 40 10 Greatest Overweight (x) 2 | 1 2 2 Average Overweight (x) . | . . 2 Largest Inventory Capacity 15 | 8 15 15 Average Capacity 11 | 7 10 15 Most Carried 15 | 2 15 15 Average Carried 9 | 1 9 15 Final Capacity 15 | 8 15 15 Final Carried 15 | 2 15 15 Class Distribution -------------------- 91% | Mutant 8% | Scavenger-Mutant Dominant Class ---------------- Mutant | -10/Materials Mutant | -10/Subcaves Resources | -11 -10 -10 ----------- Run | Yrd Mat Sub Matter Collected 706 | 211 483 12 Remotely . | . . . Salvage Created 868 | . 782 86 Parts 54 | . 44 10 Haulers Intercepted . | . . . Recyclers Shooed 2 | . 2 . Parts Field Recycled . | . . . Retrieved Matter . | . . . Parts Self-Destructed 13 | . . 13 Prevented . | . . . Kills | -11 -10 -10 ------- Run | Yrd Mat Sub Combat Hostiles Destroyed 18 | . 14 4 Guns 13 | . 12 1 Cannons 5 | . 2 3 Classes Destroyed 7 | . 6 1 Worker 1 | . 1 . Recycler 3 | . 3 . Operator 1 | . 1 . Watcher 1 | . 1 . Swarmer 6 | . 3 3 Grunt 11 | . 11 . Subdweller 1 | . . 1 Best Kill Streak 4 | . 4 3 Combat Bots Only 3 | . 2 3 Max Kills in Single Turn 1 | . 1 1 Gunslinging . | . . . Exploded . | . . . Melee . | . . . Uniques/NPCs Destroyed . | . . . Combat | -11 -10 -10 -------- Run | Yrd Mat Sub Hostile Shots Fired 120 | . 87 33 Missed 36 | . 27 9 Damage Taken 1171 | . 673 498 Core 269 | . 146 123 Absorbed by Shields . | . . . Core Remaining (%) 100 | 100 . . Volleys Fired 83 | . 70 13 Largest 2 | . 2 2 Hottest 100 | . 100 83 Shots Fired 158 | . 136 22 Gun 135 | . 122 13 Cannon 19 | . 10 9 Launcher . | . . . Special 4 | . 4 . Kinetic 90 | . 77 13 Thermal 68 | . 59 9 Explosive . | . . . Electromagnetic . | . . . Robot Hit Streak 12 | . 12 8 Robot Miss Streak 6 | . 6 2 Penetration Max . | . . . Secondary Targets 1 | . 1 . Max Gunslinging Chain 1 | . 1 . Shots Hit Robots 97 | . 82 15 Core Hits 37 | . 31 6 Critical Kills . | . . . Critical Parts Destroyed . | . . . Critical Strikes . | . . . Melee Attacks . | . . . Impact . | . . . Slashing . | . . . Piercing . | . . . Sneak Attacks . | . . . Combat Hostiles . | . . . Follow-up Attacks . | . . . Damage Inflicted 1282 | . 1037 245 Guns 1044 | . 903 141 Cannons 214 | . 110 104 Explosions . | . . . Melee . | . . . Ramming . | . . . Kinetic 743 | . 602 141 Thermal 539 | . 435 104 Explosive . | . . . Electromagnetic . | . . . Impact . | . . . Slashing . | . . . Piercing . | . . . Highest Corruption 2 | . 2 2 Average Corruption 2 | . 2 2 Corruption Purged . | . . . Corruption Blocked . | . . . Effects 7 | . 5 2 Message Errors 2 | . 2 . Matter Fused 2 | . 2 . Data Loss (minor) 2 | . . 2 Data Loss (major) 1 | . 1 . Overload Shots . | . . . Overflow Damage 4 | . 4 . Projectiles 4 | . 4 . Explosions . | . . . Melee . | . . . Knockbacks . | . . . Impact . | . . . Kinetic . | . . . Secondary . | . . . Self-Inflicted Damage . | . . . Shots . | . . . Rammed . | . . . Targets Rammed . | . . . Kicked . | . . . Crushed . | . . . Highest Temperature 156 | . 156 2 Average Temperature 38 | . 39 2 Received Heat Transfer 453 | . 327 126 Siege Activations . | . . . Robots Corrupted . | . . . Combat Hostiles . | . . . Parts Fried . | . . . Impact Corruptions . | . . . Robots Melted . | . . . Combat Hostiles . | . . . Parts Melted 2 | . 2 . Heat Transferred 1169 | . 947 222 Parts Sabotaged . | . . . Parts Stolen . | . . . Parts Stripped . | . . . Power Chain Reactions . | . . . Alert | -11 -10 -10 ------- Run | Yrd Mat Sub Peak Influence 372 | . 372 . Initial . | . . . Average 152 | . 161 . Maximum Alert Level 1 | . 1 . Low Security (%) 72 | 100 70 . Level 1 27 | . 29 . Level 2 . | . . . Level 3 . | . . . Level 4 . | . . . Level 5 . | . . . High Security . | . . . Max Security . | . . . Squads Dispatched 5 | . 5 . Investigation 4 | . 4 . Extermination . | . . . Reinforcement 1 | . 1 . Assault . | . . . Garrison . | . . . Intercept . | . . . Searches Triggered . | . . . Construction Impeded . | . . . Haulers Reinforced . | . . . Active Scanning Responses . | . . . Cargo Convoy Interrupts . | . . . Stealth | -11 -10 -10 --------- Run | Yrd Mat Sub Distress Signals 3 | . 3 . Communications Jammed . | . . . Distress Signals . | . . . Times Spotted 37 | . 31 6 Peak Tracking Total 6 | . 6 3 Tactical Retreats 4 | . 4 . Traps | -11 -10 -10 ------- Run | Yrd Mat Sub Traps Triggered 1 | . 1 . Indirectly . | . . . Trap Hack Attempts . | . . . Triggered . | . . . Disarmed . | . . . Reprogrammed 6 | . 6 . Reused 1 | . 1 . Traps Extracted . | . . . Installed . | . . . Triggered 1 | . 1 . Machines | -11 -10 -10 ---------- Run | Yrd Mat Sub Machines Disabled . | . . . Max in Single Turn . | . . . Machines Repaired . | . . . Machines Dismantled . | . . . Machines Sabotaged . | . . . Overloaded Fab Kills . | . . . Hacking | -11 -10 -10 --------- Run | Yrd Mat Sub Machines Accessed 8 | . 8 . Terminals 5 | . 5 . Fabricators . | . . . Repair Stations 1 | . 1 . Recycling Units 2 | . 2 . Scanalyzers . | . . . Garrison Access . | . . . Total Hacks 20 | . 20 . Successful 11 | . 11 . Failed 9 | . 9 . Catastrophic 2 | . 2 . Database Lockouts . | . . . Manual 16 | . 16 . Terminals 15 | . 15 . Fabricators . | . . . Repair Stations 1 | . 1 . Recycling Units 4 | . 4 . Scanalyzers . | . . . Garrison Access . | . . . Terminal Hacks 6 | . 6 . Robot Analysis 4 | . 4 . Locate Traps 1 | . 1 . Reprogram Traps 1 | . 1 . Fabricator Hacks . | . . . Repair Station Hacks . | . . . Recycling Unit Hacks 2 | . 2 . Report Inventory 2 | . 2 . Scanalyzer . | . . . Garrison Access Hacks . | . . . Unauthorized Hacks 3 | . 3 . Terminals . | . . . Fabricators . | . . . Repair Stations 1 | . 1 . Mechanics 1 | . 1 . Recycling Units 2 | . 2 . Tunnel 2 | . 2 . Scanalyzers . | . . . Garrison Access . | . . . Data Cores Recovered . | . . . Used . | . . . Hacking Detections 4 | . 4 . Full Trace Events 2 | . 2 . Feedback Events . | . . . Feedback Blocked . | . . . Robot Schematics Acquired . | . . . Robots Built . | . . . Authchips . | . . . Time . | . . . Total Robot Build Rating . | . . . Part Schematics Acquired . | . . . Parts Built . | . . . Authchips . | . . . Time . | . . . Total Part Build Rating . | . . . Parts Repaired . | . . . Time . | . . . Parts Recycled . | . . . Recycled Matter . | . . . Retrieved Matter . | . . . Retrieved Components . | . . . Parts Scanalyzed . | . . . Part Schematics Acquired . | . . . Parts Damaged . | . . . Bothacking | -11 -10 -10 ------------ Run | Yrd Mat Sub Used RIF Installer . | . . . Robots Hacked . | . . . Non-combat . | . . . Combat . | . . . Robot Hacks Applied . | . . . Relay Couplers Released . | . . . Fabnet Peak Effective % . | . . . Robots Rewired . | . . . Allies Hacked . | . . . Hacks Repelled . | . . . Allies | -11 -10 -10 -------- Run | Yrd Mat Sub Total Allies . | . . . Largest Group . | . . . Highest-Rated Group . | . . . Highest-Rated Ally . | . . . Total Orders . | . . . Ally Attacks . | . . . Total Damage . | . . . Kills . | . . . Allies Corrupted . | . . . Allies Melted . | . . . Intel | -11 -10 -10 ------- Run | Yrd Mat Sub Robot Analysis Total 4 | . 4 . Derelict Logs Recovered . | . . . Drone Launches . | . . . Drone Recoveries . | . . . Exploration | -11 -10 -10 ------------- Run | Yrd Mat Sub Turns Passed 1533 | 79 1326 128 Spaces Moved 969 | 45 838 86 Core 3 | 3 . . Treads 218 | 42 176 . Legs . | . . . Wheels 748 | . 662 86 Hover . | . . . Flight . | . . . Fastest Speed 50 | 50 100 110 Average Speed 120 | 153 119 110 Slowest Speed 240 | 160 240 110 Overloaded Moves . | . . . Propulsion Burnouts . | . . . Robots Hopped . | . . . Cave-ins Triggered . | . . . Exploration Rate (%) 37 | 5 92 14 Regions Visited 2 Branch Regions 1 Pre-discovered Areas 2 | . 2 . Known Exits Taken . | . . . Unknown Exits Taken 2 | 1 1 . Scrap Searched . | . . . Spaces Dug 2 | . 2 . Terrain Destroyed 2 | . 2 . Melee . | . . . Projectile 2 | . 2 . AOE . | . . . Terrain Rammed . | . . . Walls Destroyed . | . . . Machines Disabled . | . . . Actions | -11 -10 -10 --------- Run | Yrd Mat Sub Total 1172 | 52 1021 99 Wait 56 | . 56 . Move 967 | 44 837 86 Hop . | . . . Pick Up 20 | 2 18 . Fast Attach 14 | 6 8 . Attach 1 | . 1 . Detach 3 | . 3 . Swap 12 | . 12 . Drop 16 | . 16 . Fire 83 | . 70 13 Melee . | . . . Ram . | . . . Kick . | . . . Crush . | . . . Escape Stasis . | . . . Rewire . | . . . Trap . | . . . Miscellaneous . | . . . Route ------- -11/Scrapyard -10/Materials (discovered 4 exits: [*Mat x2] / [*Min] / [*Sub]) -10/Subcaves (discovered 1 exit: [*Mat]) History --------- Turn | Location | Event 50 | -11/Scrapyard | Discovered new exit (range 15) 80 | -11/Scrapyard | Entered Materials 313 | -10/Materials | Build established: Mutant 544 | -10/Materials | Discovered new exit (range 11) 743 | -10/Materials | Discovered new exit (range 7) 807 | -10/Materials | Discovered new exit (range 3) 1366 | -10/Materials | Core integrity fell below 50% 1398 | -10/Materials | Discovered new exit (range 8) 1406 | -10/Materials | Entered Subcaves 1479 | -10/Subcaves | Discovered new exit (range 10) 1513 | -10/Subcaves | A Subdweller sparked back to life 1513 | -10/Subcaves | A Subdweller sparked back to life 1513 | -10/Subcaves | A Subdweller sparked back to life 1530 | -10/Subcaves | Core integrity fell below 20% 1534 | -10/Subcaves | Destroyed by 40-28C(R) with Subdweller Beam Cannon Last Messages --------------- 01455_ Lgt. Assault Rifle fries itself beyond repair. 01458_ Subatomizers dissect the Flight Unit. 01459_ S-10 Pest destroyed. 01464_ Flight Unit fries itself beyond repair. 01464_ Acquired 12 matter. 01468_ Lgt. Assault Rifle fries itself beyond repair. 01468_ Lgt. Ion Engine fries itself beyond repair. 01470_ Lgt. Assault Rifle fries itself beyond repair. 01479_ EXIT=FOUND 01483_ System corrupted: Component data lost. 01513_ P3-FR2(R) creaks and sparks as it begins to move. 01513_ AX-THQ(R) creaks and sparks as it begins to move. 01513_ 40-28C(R) creaks and sparks as it begins to move. 01517_ P3-FR2(R) suffers critical hit (Destroy). 01519_ Wheel destroyed. 01522_ P3-FR2(R) destroyed. 01523_ Lgt. Ion Engine destroyed. 01525_ Subatomizers dissect the Disposable Heat Sink. 01527_ Beam Cannon destroyed. 01529_ 40-28C(R) affixes Scrap Shield Fragment to Scrap Shield. Map ----- +----------------------------------------------------+ | ????????????????# ## ?????????????????? | | ????????????????# ### #??????????????????? | | ???????????????## ## < #??????????????????? | | ?????????????### #??????????????????? | | ?????????????# #??????????????????? | | ?????????????# #???????????????????? | | ?????????????# ##???????????????????? | | ?????????????## #????????????????????? | | ??????????????# ##????????????????????? | | ??????????????# ####?????????????????????? | | ??????????????# #????????????????????????? | | ??????????????# ##???????????????????????? | | ??????????????# ## #???????????????????????? | | ??????????????# #### #???????????????????????? | | ??????????????# ??# ##???????????????????????? | | ??????????????# ?## ##???????????????????????? | | ??????????????# #?# #???????????????????????? | | ??????????????# ## ##???????????????????????? | | ??????????????# ?# #????????????????????????? | | ?????????????# # ??# ########?????????????????? | | ?????????????# #??# # #?????????????????? | | ?????????????## # #?????????????????? | | ??????????????? ???# ###?????????????????? | | ??????????????# ???#### #???????????????????? | | ?????????????? ?# ## < #???????????????????? | | ????????????# R @%!##???????????????????? | | ????????????# < #????????????????????? | | ????????????# ## # # R ;#???????????????????? | | ????????????# ???#?#### << ??????????????????? | | ????????????#?????????? #?????????????????? | | ???????????????????????# # #?????????????????? | | ???????????????????????###### #????????????????? | | ????????????????????????????? ##????????????????? | | ?????????????????????????????? #?????????????????? | | ???????????????????????????????#?????????????????? | | ?????????????????????????????????????????????????? | | ?????????????????????????????????????????????????? | | ?????????????????????????????????????????????????? | | ?????????????????????????????????????????????????? | | ?????????????????????????????????????????????????? | | ?????????????????????????????????????????????????? | | ?????????????????????????????????????????????????? | | ?????????????????????????????????????????????????? | | ?????????????????????????????????????????????????? | | ?????????????????????????????????????????????????? | | ?????????????????????????????????????????????????? | | ?????????????????????????????????????????????????? | | ?????????????????????????????????????????????????? | | ?????????????????????????????????????????????????? | | ?????????????????????????????????????????????????? | +----------------------------------------------------+ Best States ------------- Heat Dissipation 35 Energy Generation 14 Energy Capacity 160 Matter Stores 300 Matter Capacity 300 Sight Range 16 Robot Scan Range 14 Terrain Scan Density 10 Evasion (%) 40 Recoil Reduction 2 Item Schematics ----------------- None Robot Schematics ------------------ None Fabricated ------------ Nothing Alien Tech Used ----------------- None Achievements -------------- None Challenges ------------ None Game ------ Seed BombGunWand Manual? 0 Play Time 00:21:48 Cumulative 88.2 hours Start 2024.09.29 @ 09:36:33 End 2024.10.05 @ 20:49:01 Sessions 2 Manual Loads 0 Difficulty Rogue Special Mode None Game No. 30 Rogue 30 Adventurer 0 Explorer 0 Win Type - Total 2 Types 1/0/0/0/0/0/0/1/0 Lore% 52 Gallery% 57 Achievement% 53 Wizard Run 0 Options --------- Layout 0 ASCII 0 Keyboard 1 Movement Numpad Keybinds 1 Fullscreen 2 Font 24/Smallcaps Map View 76x50 Zoom Use 0% Tactical HUD 1 Map Filters NONE Filters NONE Steam 1 RUN: e3729b05-4b59-4673-8f39-3e2f07fcccf0